Cogmind - Beta 15 @@@ ROGUE MODE // 2025.10.02 @ 13:27:35 Player: K0T Result: Destroyed by YE-ORL(R) with Subdweller Machine Gun Performance ------------- Evolutions (0) 0 Regions Visited (2) 400 Robots Destroyed (17) 85 Value Destroyed (363) 363 Prototype IDs (0) 0 Alien Tech Used (0) 0 Bonus (0) 0 TOTAL SCORE: 848 Bonus ------- None Cogmind --------- Core Integrity 0/250 Matter 273/300 Energy 98/100 System Corruption 0% Temperature Cool (1) Movement Treading (240) Ox1 Location -10/Subcaves Parts ------- > --- POWER (1) -------- (None) > --- PROPULSION (2) --- Light Treads > --- UTILITY (2) ------ Large Storage Unit > --- WEAPON (2) ------- Autogun Light Cannon > --- INVENTORY (15) --- Cooling System Large Storage Unit High-capacity Battery (250) Machine Analyzer Signal Interpreter Targeting Computer Makeshift System Restoration Module EM Pulse Gun Barrage Gun Flamer Enhanced Flamer Makeshift Hammer Peak State ------------ > --- POWER ------------ Ion Engine > --- PROPULSION ------- Light Treads Light Treads > --- UTILITY ---------- Cooling System Medium Storage Unit > --- WEAPON ----------- Spread Laser Autogun > --- INVENTORY -------- Ion Engine Light Treads Machine Analyzer Targeting Computer Targeting Computer EM Pulse Gun Autogun [Rating: 11] Favorites ----------- Power Ion Engine Engine Ion Engine Propulsion Light Treads Treads Light Treads Utility Large Storage Unit Device Subdweller Optics Storage Large Storage Unit Weapon Autogun Energy Gun Spread Laser Ballistic Gun Autogun Ballistic Cannon Light Cannon Build | -11 -10 -10 ------- Run | Yrd Mat Sub Slots Evolved . | . . . Power . | . . . Propulsion . | . . . Utility . | . . . Weapon . | . . . Parts Attached 21 | 7 8 6 Power 3 | 1 1 1 Engine 3 | 1 1 1 Core . | . . . Reactor . | . . . Propulsion 3 | 2 . 1 Treads 3 | 2 . 1 Leg . | . . . Wheel . | . . . Hover . | . . . Flight . | . . . Utility 7 | 1 4 2 Device 3 | . 1 2 Storage 4 | 1 3 . Processor . | . . . Hackware . | . . . Protection . | . . . Artifact . | . . . Weapon 8 | 3 3 2 Energy Gun 5 | 3 2 . Energy Cannon . | . . . Ballistic Gun 2 | . 1 1 Ballistic Cannon 1 | . . 1 Launcher . | . . . Special Weapon . | . . . Impact Weapon . | . . . Slashing Weapon . | . . . Piercing Weapon . | . . . Special Melee Weapon . | . . . Unidentified Prototypes . | . . . Parts Lost 7 | . . 7 Power 2 | . . 2 Propulsion 2 | . . 2 Utility 1 | . . 1 Weapon 2 | . . 2 Highest Loss Streak 5 | . . 5 To Critical Strikes 1 | . . 1 Average Backups 9 | 1 7 11 Power . | . 1 . Propulsion . | . . . Utility 5 | . 3 6 Weapon 3 | . 2 4 Tool/Special . | . . . Unused Backups 11 | . 1 10 Power . | . . . Propulsion . | . . . Utility 7 | . 1 6 Weapon 4 | . . 4 Tool/Special . | . . . Average Slot Usage (%) 89 | . 97 86 Engine 13 | . 14 13 Treads 20 | . 28 17 Device 11 | . 12 11 Storage 14 | . 14 14 Energy Gun 7 | . 15 3 Ballistic Gun 13 | . 11 13 Ballistic Cannon 7 | . . 10 Peak Build Rating 11 | 6 11 11 Average Rating 9 | 4 10 9 On Entrance 5 | . 6 11 Naked Turns . | . . . Heaviest Build 33 | 13 33 33 Greatest Support 40 | 40 40 40 Greatest Overweight (x) 1 | . . 1 Average Overweight (x) . | . . . Largest Inventory Capacity 15 | 8 15 15 Average Capacity 13 | 6 11 15 Most Carried 12 | 4 11 12 Average Carried 10 | 1 7 11 Final Capacity 15 | 8 15 15 Final Carried 12 | 2 11 12 Class Distribution -------------------- 100% | Mutant Dominant Class ---------------- Mutant | -10/Materials Mutant | -10/Subcaves Resources | -11 -10 -10 ----------- Run | Yrd Mat Sub Matter Collected 684 | 253 173 258 Remotely . | . . . Salvage Created 392 | . 244 148 Parts 37 | . 19 18 Haulers Intercepted 2 | . 2 . Recyclers Shooed . | . . . Parts Field Recycled . | . . . Retrieved Matter . | . . . Parts Self-Destructed 14 | . . 14 Prevented . | . . . Kills | -11 -10 -10 ------- Run | Yrd Mat Sub Combat Hostiles Destroyed 12 | . 6 6 Guns 10 | . 6 4 Cannons 2 | . . 2 Classes Destroyed 7 | . 6 1 Builder 1 | . 1 . Hauler 2 | . 2 . Mechanic 1 | . 1 . Watcher 1 | . 1 . Swarmer 5 | . 3 2 Grunt 3 | . 3 . Subdweller 4 | . . 4 Best Kill Streak 4 | . 4 2 Combat Bots Only 3 | . 3 2 Max Kills in Single Turn 1 | . 1 1 Gunslinging . | . . . Exploded . | . . . Melee . | . . . Uniques/NPCs Destroyed . | . . . Combat | -11 -10 -10 -------- Run | Yrd Mat Sub Hostile Shots Fired 102 | . 21 81 Missed 30 | . 4 26 Hits 72 | . 17 55 Projectile 72 | . 17 55 Critical Strikes 2 | . . 2 Damage Taken 1168 | . 170 998 Core 251 | . 44 207 Absorbed by Shields . | . . . Core Remaining (%) 100 | 100 . . Volleys Fired 67 | . 23 44 Largest 2 | . 2 2 Hottest 90 | . 90 88 Shots Fired 130 | . 46 84 Gun 109 | . 46 63 Cannon 21 | . . 21 Launcher . | . . . Special . | . . . Kinetic 84 | . 19 65 Thermal 46 | . 27 19 Explosive . | . . . Electromagnetic . | . . . Robot Hit Streak 20 | . 9 20 Robot Miss Streak 8 | . 8 3 Penetration Max . | . . . Secondary Targets 2 | . 2 . Max Gunslinging Chain 1 | . 1 . Shots Hit Robots 78 | . 34 44 Core Hits 49 | . 33 16 Critical Kills . | . . . Critical Parts Destroyed . | . . . Critical Strikes . | . . . Melee Attacks . | . . . Impact . | . . . Slashing . | . . . Piercing . | . . . Sneak Attacks . | . . . Combat Hostiles . | . . . Follow-up Attacks . | . . . Damage Inflicted 852 | . 457 395 Guns 773 | . 457 316 Cannons 79 | . . 79 Explosions . | . . . Melee . | . . . Ramming . | . . . Kinetic 443 | . 195 248 Thermal 409 | . 262 147 Explosive . | . . . Electromagnetic . | . . . Impact . | . . . Slashing . | . . . Piercing . | . . . Highest Corruption . | . . . Average Corruption . | . . . Corruption Purged . | . . . Corruption Blocked . | . . . Overload Shots . | . . . Overflow Damage . | . . . Projectiles . | . . . Explosions . | . . . Melee . | . . . Knockbacks . | . . . Impact . | . . . Kinetic . | . . . Secondary . | . . . Self-Inflicted Damage . | . . . Shots . | . . . Rammed . | . . . Targets Rammed 1 | . 1 . Kicked . | . . . Crushed 1 | . 1 . Highest Temperature 60 | . 60 24 Average Temperature 10 | . 11 9 Received Heat Transfer 138 | . 60 78 Siege Activations . | . . . Martial Activations . | . . . Shielding Activations . | . . . Robots Disrupted . | . . . Combat Hostiles . | . . . Robots Corrupted . | . . . Combat Hostiles . | . . . Parts Fried . | . . . Impact Corruptions . | . . . Robots Melted . | . . . Combat Hostiles . | . . . Parts Melted . | . . . Heat Transferred 589 | . 404 185 Parts Sabotaged . | . . . Parts Stolen . | . . . Parts Stripped . | . . . Power Chain Reactions . | . . . Alert | -11 -10 -10 ------- Run | Yrd Mat Sub Maximum Alert Level . | . . . Low Security (%) 100 | 100 100 . Level 1 . | . . . Level 2 . | . . . Level 3 . | . . . Level 4 . | . . . Level 5 . | . . . High Security . | . . . Max Security . | . . . Peak Influence 71 | . 71 . Initial . | . . . Average 7 | . 8 . Influence Increases 315 | . 185 130 Destroy 0b10 Robot/C 160 | . 120 40 Destroy 0b10 Robot/NC 25 | . 25 . Destroy Leader 36 | . 36 . Successful Hack 4 | . 4 . Lose Combat Pursuer 90 | . . 90 Influence Decreases 315 | . 126 189 Entered New Map 29 | . . 29 Time Decay 286 | . 126 160 Squads Dispatched 1 | . 1 . Investigation . | . . . Extermination . | . . . Reinforcement 1 | . 1 . Assault . | . . . Garrison . | . . . Intercept . | . . . Searches Triggered . | . . . Construction Impeded . | . . . Haulers Reinforced . | . . . Active Scanning Responses . | . . . Cargo Convoy Interrupts . | . . . Stealth | -11 -10 -10 --------- Run | Yrd Mat Sub Distress Signals 2 | . 2 . Communications Jammed . | . . . Distress Signals . | . . . Times Spotted 33 | . 20 13 Peak Tracking Total 6 | . 4 6 Tactical Retreats 3 | . . 3 Traps | -11 -10 -10 ------- Run | Yrd Mat Sub Traps Triggered . | . . . Indirectly . | . . . Trap Hack Attempts . | . . . Triggered . | . . . Disarmed . | . . . Reprogrammed . | . . . Reused . | . . . Traps Extracted . | . . . Installed . | . . . Triggered . | . . . Machines | -11 -10 -10 ---------- Run | Yrd Mat Sub Machines Disabled . | . . . Max in Single Turn . | . . . Machines Repaired . | . . . Machines Dismantled . | . . . Machines Sabotaged . | . . . Overloaded Fab Kills . | . . . Hacking | -11 -10 -10 --------- Run | Yrd Mat Sub Machines Accessed 1 | . 1 . Terminals 1 | . 1 . Fabricators . | . . . Repair Stations . | . . . Recycling Units . | . . . Scanalyzers . | . . . Garrison Access . | . . . Total Hacks 1 | . 1 . Successful 1 | . 1 . Failed . | . . . Catastrophic . | . . . Database Lockouts . | . . . Manual 1 | . 1 . Terminals 1 | . 1 . Fabricators . | . . . Repair Stations . | . . . Recycling Units . | . . . Scanalyzers . | . . . Garrison Access . | . . . Terminal Hacks . | . . . Fabricator Hacks . | . . . Repair Station Hacks . | . . . Recycling Unit Hacks . | . . . Scanalyzer . | . . . Garrison Access Hacks . | . . . Unauthorized Hacks 1 | . 1 . Terminals 1 | . 1 . Skim 1 | . 1 . Fabricators . | . . . Repair Stations . | . . . Recycling Units . | . . . Scanalyzers . | . . . Garrison Access . | . . . Data Cores Recovered . | . . . Used . | . . . Hacking Detections 1 | . 1 . Full Trace Events . | . . . Feedback Events . | . . . Feedback Blocked . | . . . Robot Schematics Acquired . | . . . Robots Built . | . . . Authchips . | . . . Time . | . . . Total Robot Build Rating . | . . . Part Schematics Acquired . | . . . Parts Built . | . . . Authchips . | . . . Time . | . . . Total Part Build Rating . | . . . Parts Repaired . | . . . Time . | . . . Parts Recycled . | . . . Recycled Matter . | . . . Retrieved Matter . | . . . Retrieved Components . | . . . Parts Scanalyzed . | . . . Part Schematics Acquired . | . . . Parts Damaged . | . . . Bothacking | -11 -10 -10 ------------ Run | Yrd Mat Sub Used RIF Installer . | . . . Robots Hacked . | . . . Non-combat . | . . . Combat . | . . . Robot Hacks Applied . | . . . Relay Couplers Released . | . . . Fabnet Peak Effective % . | . . . Robots Rewired . | . . . Allies Hacked . | . . . Hacks Repelled . | . . . Allies | -11 -10 -10 -------- Run | Yrd Mat Sub Total Allies . | . . . Largest Group . | . . . Highest-Rated Group . | . . . Highest-Rated Ally . | . . . Total Orders . | . . . Ally Attacks . | . . . Total Damage . | . . . Kills . | . . . Allies Corrupted . | . . . Allies Melted . | . . . Intel | -11 -10 -10 ------- Run | Yrd Mat Sub Active Infowar (turns) 1588 | . . 1588 Optics 1471 | . . 1471 Structural 117 | . . 117 Robot Analysis Total . | . . . Derelict Logs Recovered 1 | . . 1 Drone Launches . | . . . Drone Recoveries . | . . . Exploration | -11 -10 -10 ------------- Run | Yrd Mat Sub Turns Passed 3203 | 84 860 2259 Spaces Moved 1519 | 50 476 993 Core 9 | 9 . . Treads 1510 | 41 476 993 Legs . | . . . Wheels . | . . . Hover . | . . . Flight . | . . . Fastest Speed 50 | 50 160 160 Average Speed 194 | 140 160 213 Slowest Speed 240 | 160 160 240 Overloaded Moves . | . . . Propulsion Burnouts . | . . . Robots Hopped . | . . . Potential Cave-ins . | . . . Cave-ins Triggered . | . . . Exploration Rate (%) 36 | 4 52 54 Regions Visited 2 Branch Regions 1 Pre-discovered Areas . | . . . Known Exits Taken . | . . . Unknown Exits Taken 2 | 1 1 . Scrap Searched 5 | . . 5 Spaces Dug . | . . . Terrain Destroyed . | . . . Melee . | . . . Projectile . | . . . AOE . | . . . Terrain Rammed . | . . . Walls Destroyed . | . . . Machines Disabled . | . . . Actions | -11 -10 -10 --------- Run | Yrd Mat Sub Total 1659 | 64 535 1060 Wait 14 | . 4 10 Move 1517 | 49 475 993 Hop . | . . . Pick Up 30 | 8 16 6 Fast Attach . | . . . Attach 15 | 6 4 5 Detach . | . . . Swap 6 | 1 4 1 Drop 9 | . 8 1 Fire 67 | . 23 44 Melee . | . . . Ram . | . . . Kick . | . . . Crush 1 | . 1 . Escape Stasis . | . . . Rewire . | . . . Trap . | . . . Miscellaneous . | . . . Route ------- -11/Scrapyard -10/Materials (discovered 4 exits: [*Mat x2] / [*Min] / [*Sub]) -10/Subcaves (discovered 1 exit: [*Scr]) History --------- Turn | Location | Event 35 | -11/Scrapyard | Discovered new exit (range 16) 85 | -11/Scrapyard | Entered Materials 300 | -10/Materials | Build established: Mutant 410 | -10/Materials | Discovered new exit (range 8) 440 | -10/Materials | Discovered new exit (range 9) 559 | -10/Materials | Discovered new exit (range 16) 721 | -10/Materials | Discovered new exit (range 16) 945 | -10/Materials | Entered Subcaves 946 | -10/Subcaves | Approached by a straggling Scientist 1047 | -10/Subcaves | Learned Materials trap positions 1077 | -10/Subcaves | Scientist uncovered a shortcut to Scraptown 1182 | -10/Subcaves | A swath of the cavern ceiling suddenly collapsed 1203 | -10/Subcaves | Shifting Twisted Machinery released Sub. Monowheel 1456 | -10/Subcaves | A swath of the cavern ceiling suddenly collapsed 1550 | -10/Subcaves | Core integrity fell below 50% 1591 | -10/Subcaves | Lost 5 parts (1p2n2w) 1863 | -10/Subcaves | Disturbed a concealed Subdweller 2077 | -10/Subcaves | Shifting Twisted Machinery released Mak. Hammer 3195 | -10/Subcaves | A Subdweller sparked back to life 3195 | -10/Subcaves | A Subdweller sparked back to life 3195 | -10/Subcaves | A Subdweller sparked back to life 3198 | -10/Subcaves | Core integrity fell below 20% 3204 | -10/Subcaves | Destroyed by YE-ORL(R) with Subdweller Machine Gun Last Messages --------------- 01921_ Acquired Flamer. Mak. Hammer falls loose from the Twisted Machinery. 02097_ Acquired Mak. Hammer. 02591_ Acquired 23 matter. 02596_ Acquired 16 matter. 02754_ Acquired 21 matter. 02759_ Acquired 10 matter. 02762_ Acquired 16 matter. 02771_ Acquired 2 matter. 02823_ Sub. Optics shoots sparks and powers down. 02841_ Dropped Broken Sub. Optics. 03195_ YE-ORL(R) creaks and sparks as it begins to move. 03195_ JN-F2C(R) creaks and sparks as it begins to move. 03195_ S2-XG1(R) creaks and sparks as it begins to move. 03200_ Ion Engine destroyed. Map ----- +----------------------------------------------------+ | ?????????????????????????????????????????????????? | | ?????????????????????????????????????????????????? | | ?????????????????????????????????????????????????? | | ?????????????????????????????????????????????????? | | ?????????????????????????????????????????????????? | | ?????????????????????????????????????????????????? | | ?????????????????????????????????????????????????? | | ?????????????????????????????????????????????????? | | ?????????????????????????????????????????????????? | | ?????????????????????????????????????????????????? | | ?????????????????????????????????????????????????? | | ?????????????????????????????????????????????????? | | ?????????????????????##"#????????????????????????? | | ????????????????????##""#????????????????????????? | | ???????????????????## ????????????????????????? | | ???????????????????# ###?????????????????????? | | ?????????????????### <## ###???????????????????? | | ?????????????????# < < #???????????????????# | | ??????????????????# # ##???????????????????# | | ??????????????????#" R## #???????????????????# | | ??????????????????#""& R #????????????????????# | | ??????????????????#####R ##???????????????????# | | ??????????????????????# ##??????????????????# | | ??????????????????????# ##?????????????????# | | ??????????????????????## ##????????????????? | | ???????????????????????##@ ##???????????????# | | ????????????????????????# #???????????????# | | ????????????????????????# ##???????????????# | | ????????????????????????# #????????????????# | | ?????????????? ????## ###????????????????# | | ????????????? ## ####???????????????# | | ????????????? ##??????????????? | | ????????????? #??????????????? | | ????????????? ###### ##?????????????? | | ?????????????? ?????## #?????????????? | | ??????????????? ???????# ##?????????????? | | ??????????????? #????????## ###??????????????? | | ??????????????? ??????????## ##????????????????? | | ???????????????? ??????????## ##????????????????? | | ???????????????????????????# #????????????????? | | ???????????????????????????### ##????###?????????? | | ?????????????????????????????# ###### ##????????? | | ?????????????????????????????## # ####?????? | | ??????????????????????????????## #?????? | | ??????????????????????????????## ##?????? | | ??????????????????????????????# [ ##??????? | | ???????????????????????????## ## #####???????? | | ??????????????????????????## #### ##??????????? | | ??????????????????????????# #???# #??????????? | | ??????????????????????????# ###?# #??????????? | +----------------------------------------------------+ Best States ------------- Heat Dissipation 47 Energy Generation 10 Energy Capacity 250 Matter Stores 300 Matter Capacity 300 Sight Range 21 Terrain Scan Density 10 Evasion (%) 40 Recoil Reduction 2 Item Schematics ----------------- None Robot Schematics ------------------ None Fabricated ------------ Nothing Repaired ---------- Nothing Alien Tech Used ----------------- None Achievements -------------- None Challenges ------------ None Game ------ Seed ProtonShockTurbovents Manual? 0 Play Time 00:16:41 Cumulative 143.0 hours Start 2025.10.02 @ 13:06:54 End 2025.10.02 @ 13:27:35 Sessions 1 Manual Loads 0 Difficulty Rogue Special Mode None Game No. 73 Rogue 60 Adventurer 13 Explorer 0 Win Type - Total 1 Types 1/0/0/0/0/0/0/0/0/0 Lore% 35 Gallery% 39 Achievement% 40 Wizard Run 0 Options --------- Layout 1 ASCII 0 Keyboard 0 Movement Arrows Keybinds 0 Fullscreen 1 Font 24/Smallcaps Map View 50x35 Zoom Use 0% Tactical HUD 1 Map Filters NONE Filters NONE Steam 0 RUN: 76227e57-9a09-4c09-ae30-13fc43e249e8